bitfinex-derivatives/quotes_BTCF0:USTF0_20241021
["timestamp","ask_amount","ask_price","bid_price","bid_amount"]
[1729538009183,0.074007,67584.0,67583.0,0.074008]
[1729538010174,0.434807,67584.0,67583.0,0.074008]
[1729538010380,0.074007,67584.0,67583.0,0.074008]
[1729538011090,0.074007,67584.0,67583.0,0.07863667]
[1729538011887,0.074007,67584.0,67583.0,0.07963667]
[1729538014090,0.074007,67584.0,67583.0,0.09693645]
[1729538015396,0.074007,67584.0,67583.0,0.09230778]
[1729538016583,0.04859217,67585.0,67583.0,0.01829978]
[1729538016895,0.04859217,67585.0,67584.0,0.074007]
[1729538018291,0.08885204,67585.0,67584.0,0.074007]
[1729538019193,0.08885204,67585.0,67584.0,0.07863537]
[1729538019391,0.08885204,67585.0,67584.0,0.07863545]
[1729538019586,0.08885204,67585.0,67584.0,0.074007]
[1729538021191,0.04859217,67585.0,67584.0,0.074007]
[1729538028192,0.13550618,67585.0,67584.0,0.074007]
[1729538028792,0.13550213,67585.0,67584.0,0.074007]
[1729538030904,0.20950813,67585.0,67584.0,0.074007]
[1729538033901,0.13550213,67585.0,67584.0,0.074007]
[1729538034509,0.20950813,67585.0,67584.0,0.074007]
[1729538035106,0.13550213,67585.0,67584.0,0.074007]
[1729538036206,0.04859217,67585.0,67584.0,0.074007]
[1729538043814,0.04859217,67585.0,67584.0,0.11783112]
[1729538045415,0.04859217,67585.0,67584.0,0.074007]
[1729538045913,0.01119217,67585.0,67584.0,0.074007]
[1729538047906,0.01119217,67585.0,67584.0,0.13227491]
[1729538048308,0.01119217,67585.0,67584.0,0.074007]
[1729538048811,0.01119217,67585.0,67584.0,0.13244054]
[1729538049407,0.01119217,67585.0,67584.0,0.074007]
[1729538053517,0.05218184,67585.0,67584.0,0.074007]
[1729538054016,0.01119217,67585.0,67584.0,0.074007]
[1729538061112,0.01119217,67585.0,67584.0,0.214407]
[1729538070729,0.0113683,67599.0,67598.0,0.073992]
[1729538070932,0.0113683,67599.0,67598.0,0.434792]
[1729538071532,0.0113683,67599.0,67598.0,0.4785635]
[1729538071829,0.0113683,67599.0,67598.0,0.434792]
[1729538073232,0.0113683,67599.0,67598.0,0.435792]
[1729538073620,0.05907214,67599.0,67598.0,0.435792]
[1729538073826,0.0113683,67599.0,67598.0,0.435792]
[1729538074022,0.10096508,67599.0,67598.0,0.435792]
[1729538074331,0.10096508,67599.0,67598.0,0.434792]
[1729538075627,0.10096508,67599.0,67598.0,0.45208665]
[1729538078228,0.10110057,67599.0,67598.0,0.45208665]
[1729538081537,0.0113683,67599.0,67598.0,0.45208665]
[1729538083341,0.0113683,67599.0,67598.0,0.01729465]
[1729538083547,0.0113683,67599.0,67596.0,0.073994]
[1729538083744,0.0386,67598.0,67597.0,0.073993]
[1729538088846,0.0386,67598.0,67597.0,0.09119417]
[1729538089448,0.08033079,67598.0,67597.0,0.09119417]
[1729538091344,0.0386,67598.0,67597.0,0.09119417]
[1729538091649,0.0803854,67598.0,67597.0,0.09119417]
[1729538092948,0.0386,67598.0,67597.0,0.09119417]
[1729538093937,0.0113683,67599.0,67597.0,0.09119417]
[1729538094144,0.0113683,67599.0,67598.0,0.073992]
[1729538094339,0.05324639,67599.0,67598.0,0.073992]
[1729538096251,0.0113683,67599.0,67598.0,0.073992]
[1729538103667,0.053581,67599.0,67598.0,0.073992]
[1729538103869,0.10164895,67599.0,67598.0,0.073992]
[1729538104860,0.045067,67599.0,67598.0,0.073992]
[1729538105061,0.045067,67599.0,67597.0,0.22443417]
[1729538105062,0.16265804,67602.0,67601.0,0.073989]
[1729538105264,0.16265804,67602.0,67601.0,0.434789]
[1729538105565,0.1131,67612.0,67601.0,0.434789]
[1729538105566,0.16265804,67609.0,67608.0,0.073981]
[1729538105770,0.16265804,67609.0,67608.0,0.434781]
[1729538106469,0.16265804,67611.0,67610.0,0.073979]
[1729538107258,0.16254577,67611.0,67610.0,0.073979]
[1729538107960,0.16254577,67611.0,67610.0,0.435779]
[1729538108161,0.01346415,67613.0,67612.0,0.073977]
[1729538110069,0.01346415,67613.0,67612.0,0.075977]
[1729538110273,0.06019132,67613.0,67612.0,0.075977]
[1729538111277,0.22257833,67613.0,67612.0,0.075977]
[1729538111468,0.06019132,67613.0,67612.0,0.075977]
[1729538111668,0.01346415,67613.0,67612.0,0.075977]
[1729538112271,0.01346415,67613.0,67612.0,0.002]
[1729538112579,0.01346415,67613.0,67612.0,0.075977]
[1729538116483,0.05216415,67613.0,67612.0,0.075977]
[1729538118677,0.09278795,67613.0,67612.0,0.075977]
[1729538118881,0.13904661,67613.0,67612.0,0.075977]
[1729538120769,0.21302261,67613.0,67612.0,0.002]
[1729538120970,0.24982261,67613.0,67612.0,0.002]
[1729538121682,0.24982261,67613.0,67612.0,0.00107402]
[1729538121878,0.4121878,67613.0,67612.0,0.00107402]
[1729538122184,0.24982261,67613.0,67612.0,0.00107402]
[1729538123376,0.24978539,67613.0,67612.0,0.00107402]
[1729538125884,0.24978539,67613.0,67612.0,0.07505102]
[1729538126184,0.10030939,67613.0,67612.0,0.07505102]
[1729538126683,0.01346415,67613.0,67612.0,0.07505102]
[1729538131687,0.01346415,67613.0,67612.0,0.001]
[1729538131899,0.073982,67607.0,67606.0,0.04377182]
[1729538132095,0.3608,67607.0,67597.0,0.419162]
[1729538132393,0.073982,67608.0,67597.0,0.3608]
[1729538132593,0.073982,67607.0,67606.0,0.073983]
[1729538132786,0.073985,67605.0,67598.0,0.0368]
[1729538132987,0.073986,67604.0,67598.0,0.0368]
[1729538133186,0.073986,67604.0,67603.0,0.073987]
[1729538135088,0.07399,67601.0,67600.0,0.07399]
[1729538136695,0.07599,67601.0,67600.0,0.07399]
[1729538137084,0.073991,67599.0,67598.0,0.0368]
[1729538137990,0.073992,67598.0,67597.0,0.0175047]
[1729538138294,0.073993,67597.0,67596.0,0.073994]
[1729538138985,0.073991,67600.0,67599.0,0.07399]
[1729538140185,0.074991,67600.0,67599.0,0.07399]
[1729538141691,0.11511784,67600.0,67599.0,0.07399]
[1729538148802,0.074991,67600.0,67599.0,0.07399]
[1729538149897,0.074991,67600.0,67594.0,0.09411776]
[1729538149898,0.074991,67600.0,67594.0,0.01741776]
[1729538150200,0.074991,67600.0,67586.0,0.074005]
[1729538150201,0.073998,67593.0,67586.0,0.110505]
[1729538150387,0.073994,67596.0,67594.0,0.073996]
[1729538150593,0.073995,67595.0,67594.0,0.073996]
[1729538150988,0.073995,67595.0,67594.0,0.077996]
[1729538152290,0.073992,67598.0,67596.0,0.073994]
[1729538152487,0.073993,67597.0,67596.0,0.073994]
[1729538152798,0.073995,67596.0,67594.0,0.004]
[1729538152992,0.073995,67596.0,67594.0,0.077996]
[1729538153195,0.073995,67596.0,67594.0,0.007]
[1729538153690,0.073995,67596.0,67594.0,0.004]
[1729538154096,0.073995,67596.0,67588.0,0.0536011]
[1729538154097,0.073995,67596.0,67589.0,0.074002]
[1729538154410,0.073995,67596.0,67594.0,0.080996]
[1729538154894,0.073995,67596.0,67595.0,0.073995]
[1729538155298,0.073987,67603.0,67595.0,0.073995]
[1729538155496,0.3608,67604.0,67598.0,0.073992]
[1729538155497,0.07399,67601.0,67598.0,0.073992]
[1729538155817,0.3608,67604.0,67598.0,0.073992]
[1729538156303,0.073991,67599.0,67598.0,0.073992]
[1729538157196,0.001,67604.0,67595.0,0.004]
[1729538157389,0.07399,67600.0,67599.0,0.07399]
[1729538159507,0.07499,67600.0,67599.0,0.07399]
[1729538162399,0.43579,67600.0,67599.0,0.07399]
[1729538162599,0.43579,67600.0,67599.0,0.09140765]
[1729538162899,0.07499,67600.0,67599.0,0.09140765]
[1729538163895,0.16348347,67600.0,67599.0,0.09140765]
[1729538164097,0.04104812,67600.0,67599.0,0.09140765]
[1729538165003,0.08744015,67613.0,67612.0,0.073977]
[1729538165198,0.05967155,67613.0,67612.0,0.073977]
[1729538165498,0.05987732,67613.0,67612.0,0.03980235]
[1729538166299,0.05987732,67613.0,67612.0,0.04080235]
[1729538166499,0.06087732,67613.0,67612.0,0.04180235]
[1729538167207,0.01446415,67613.0,67612.0,0.04180235]
[1729538167511,0.08844015,67613.0,67612.0,0.04180235]
[1729538169405,0.01446415,67613.0,67612.0,0.04180235]
[1729538169613,0.01446415,67613.0,67612.0,0.05884675]
[1729538171302,0.06035569,67613.0,67612.0,0.05884675]
[1729538171505,0.01446415,67613.0,67612.0,0.05884675]
[1729538172506,0.01446415,67613.0,67612.0,0.41964675]
[1729538173506,0.01446415,67613.0,67612.0,0.05884675]
[1729538178210,0.0111925,67626.0,67612.0,0.05884675]
[1729538178417,0.0111925,67626.0,67625.0,0.073963]
[1729538178613,0.0111925,67626.0,67625.0,0.434763]
[1729538178823,0.05234858,67626.0,67625.0,0.15354447]
[1729538179007,0.09921335,67626.0,67625.0,0.073963]
[1729538179513,0.21434851,67626.0,67625.0,0.073963]
[1729538179815,0.09921335,67626.0,67625.0,0.074963]
[1729538180113,0.25899476,67626.0,67625.0,0.074963]
[1729538180299,0.09699483,67626.0,67625.0,0.075963]
[1729538180506,0.0927516,67626.0,67625.0,0.075963]
[1729538181222,0.04735571,67626.0,67625.0,0.0930925]
[1729538181515,0.00897398,67626.0,67625.0,0.0930925]
[1729538181818,0.00897398,67626.0,67625.0,0.0950925]
[1729538181819,0.04735571,67626.0,67625.0,0.0950925]
[1729538182016,0.09275511,67626.0,67625.0,0.0950925]
[1729538182211,0.09275511,67626.0,67625.0,0.0940925]
[1729538182416,0.04735571,67626.0,67625.0,0.0980925]
[1729538182616,0.04735571,67626.0,67625.0,0.0241295]
[1729538182815,0.12131671,67626.0,67625.0,0.0241295]
[1729538183413,0.12131671,67626.0,67625.0,0.007]
[1729538183707,0.16671758,67626.0,67625.0,0.007]
[1729538184308,0.09275658,67626.0,67625.0,0.007]
[1729538184807,0.16671758,67626.0,67625.0,0.007]
[1729538185212,0.16671758,67626.0,67625.0,0.006]
[1729538185508,0.16633545,67626.0,67625.0,0.006]
[1729538185710,0.08293498,67626.0,67625.0,0.006]
[1729538185910,0.08293498,67626.0,67625.0,0.004]
[1729538186215,0.073963,67625.0,67624.0,0.0175316]
[1729538186414,0.3608,67625.0,67622.0,0.073965]
[1729538186613,0.073965,67623.0,67622.0,0.073965]
[1729538187018,0.3608,67625.0,67611.0,0.15084617]
[1729538187209,0.3608,67617.0,67612.0,0.073977]
[1729538188110,0.3608,67617.0,67616.0,0.073972]
[1729538188616,0.073966,67622.0,67619.0,0.073969]
[1729538188803,0.073963,67625.0,67618.0,0.07397]
[1729538189009,0.073967,67621.0,67612.0,0.085977]
[1729538189208,0.073967,67621.0,67612.0,0.073977]
[1729538189408,0.073967,67621.0,67616.0,0.007]
[1729538189913,0.073967,67621.0,67619.0,0.073969]
[1729538190517,0.00897398,67626.0,67620.0,0.073968]
[1729538191120,0.073967,67622.0,67620.0,0.073968]
[1729538192213,0.073967,67622.0,67620.0,0.076968]
[1729538192420,0.00897398,67626.0,67620.0,0.076968]
[1729538192421,0.073967,67621.0,67620.0,0.076968]
[1729538192623,0.073967,67621.0,67620.0,0.073968]
[1729538192919,0.073963,67625.0,67621.0,0.073966]
[1729538193217,0.073966,67623.0,67621.0,0.073966]
[1729538193412,0.073966,67622.0,67621.0,0.073966]
[1729538193811,0.15750678,67622.0,67621.0,0.03886938]
[1729538194013,0.27410305,67622.0,67621.0,0.03886938]
[1729538194316,0.31950671,67622.0,67621.0,0.03886938]
[1729538194511,0.31950671,67622.0,67621.0,0.04286938]
[1729538194914,0.31950671,67622.0,67621.0,0.04486938]
[1729538195422,0.15750678,67622.0,67621.0,0.04486938]
[1729538195612,0.31950671,67622.0,67621.0,0.04386938]
[1729538195925,0.31950671,67622.0,67621.0,0.06121425]
[1729538196111,0.15750678,67622.0,67621.0,0.06121425]
[1729538196514,0.15750678,67622.0,67621.0,0.05721425]
[1729538196715,0.15750678,67622.0,67621.0,0.06021425]
[1729538197018,0.96194678,67622.0,67611.0,0.00221842]
[1729538197220,0.96194678,67622.0,67584.0,0.3608]
[1729538197221,0.3608,67612.0,67596.0,0.00221908]
[1729538197521,0.3608,67612.0,67603.0,0.073986]
[1729538197522,0.08354078,67611.0,67603.0,0.073986]
[1729538197707,0.073981,67608.0,67603.0,0.073986]
[1729538197907,0.08354078,67607.0,67603.0,0.073986]
[1729538198112,0.08354078,67606.0,67603.0,0.073986]
[1729538198330,0.08354078,67605.0,67603.0,0.073986]
[1729538198619,0.08354078,67604.0,67603.0,0.073986]
[1729538199518,0.44434078,67604.0,67603.0,0.073986]
[1729538199713,0.44434078,67604.0,67600.0,0.07399]
[1729538199714,0.08354078,67604.0,67600.0,0.07399]
[1729538200020,0.08354078,67603.0,67600.0,0.07399]
[1729538200212,0.08354078,67602.0,67600.0,0.07399]
[1729538200518,0.08354078,67601.0,67600.0,0.07399]
[1729538200914,0.073984,67605.0,67601.0,0.073988]
[1729538201114,0.073984,67605.0,67603.0,0.004]
[1729538201617,0.073984,67605.0,67601.0,0.073988]
[1729538202022,0.073987,67603.0,67601.0,0.073988]
[1729538202527,0.073987,67603.0,67602.0,0.073988]
[1729538203715,0.434787,67603.0,67602.0,0.073988]
[1729538205017,0.434787,67603.0,67602.0,0.078988]
[1729538205423,0.434787,67603.0,67602.0,0.09629994]
[1729538205921,0.073987,67603.0,67602.0,0.10229994]
[1729538206115,0.434787,67603.0,67602.0,0.09729994]
[1729538206315,0.434787,67603.0,67602.0,0.10229994]
[1729538206721,0.073987,67603.0,67602.0,0.10229994]
[1729538208026,0.434787,67603.0,67602.0,0.10229994]
[1729538208228,0.434787,67603.0,67602.0,0.02231194]
[1729538208423,0.434787,67603.0,67602.0,0.02831194]
[1729538210332,0.434787,67603.0,67602.0,0.02231194]
[1729538210530,0.434787,67603.0,67602.0,0.02831194]
[1729538210737,0.073987,67603.0,67602.0,0.02831194]
[1729538211137,0.073987,67603.0,67602.0,0.02231194]
[1729538211330,0.073987,67603.0,67602.0,0.02831194]
[1729538211532,0.517747,67603.0,67595.0,0.05842059]
[1729538211734,0.434794,67596.0,67595.0,0.00014936]
[1729538213341,0.878594,67596.0,67595.0,0.00014936]
[1729538214030,0.878594,67596.0,67584.0,0.00221946]
[1729538214031,0.8046,67596.0,67584.0,0.00221946]
[1729538214231,0.795606,67585.0,67584.0,0.00221946]
[1729538215030,0.79576057,67585.0,67584.0,0.00221946]
[1729538215228,0.43496057,67585.0,67584.0,0.00221946]
[1729538215436,0.434806,67585.0,67584.0,0.00221946]
[1729538215747,0.074009,67583.0,67582.0,0.01700117]
[1729538215931,0.074016,67577.0,67573.0,0.1117]
[1729538216133,0.07416357,67583.0,67573.0,0.1117]
[1729538216134,0.074017,67576.0,67573.0,0.1117]
[1729538217439,0.001,67577.0,67573.0,0.1257]
[1729538217630,0.001,67577.0,67576.0,0.074016]
[1729538218035,0.001,67577.0,67576.0,0.434816]
[1729538218235,0.07401,67582.0,67579.0,0.074012]
[1729538218544,0.07401,67582.0,67576.0,0.3608]
[1729538218545,0.07401,67582.0,67580.0,0.074011]
[1729538220345,0.001,67582.0,67580.0,0.074011]
[1729538220540,0.074011,67581.0,67580.0,0.074011]
[1729538220843,0.074011,67581.0,67580.0,0.088011]
[1729538221037,0.074011,67581.0,67580.0,0.102011]
[1729538221846,0.00015457,67583.0,67582.0,0.07401]
[1729538222850,0.07416357,67583.0,67582.0,0.07401]
[1729538223046,0.00015457,67583.0,67582.0,0.07401]
[1729538223942,0.00015457,67583.0,67582.0,0.08801]
[1729538223943,0.00115457,67583.0,67582.0,0.08801]
[1729538224148,0.00215457,67583.0,67582.0,0.10201]
[1729538225949,0.00215457,67583.0,67582.0,0.11959498]
[1729538226842,0.07616357,67583.0,67582.0,0.11959498]
[1729538227044,0.00215457,67583.0,67582.0,0.11959498]
[1729538227351,0.07616357,67583.0,67582.0,0.11959498]
[1729538227936,0.07616357,67583.0,67582.0,0.04558498]
[1729538228741,0.07616357,67583.0,67582.0,0.08621644]
[1729538228949,0.44592,67583.0,67573.0,0.0729525]
[1729538229141,0.7216,67574.0,67568.0,0.0729525]
[1729538229343,0.074028,67566.0,67564.0,0.0729525]
[1729538229548,0.7216,67574.0,67564.0,0.0729525]
[1729538229549,0.38297647,67565.0,67564.0,0.0729525]
[1729538229738,0.074028,67565.0,67564.0,0.01702229]
[1729538229937,0.3608,67568.0,67563.0,0.0742]
[1729538230142,0.074029,67564.0,67563.0,0.0742]
[1729538230942,0.07403,67563.0,67562.0,0.00221991]
[1729538231547,0.07403,67563.0,67562.0,0.01966905]
[1729538231748,0.07403,67563.0,67562.0,0.00221991]
[1729538233949,0.07503,67563.0,67562.0,0.00421991]
[1729538234149,0.07603,67563.0,67562.0,0.00421991]
[1729538234746,0.001,67563.0,67562.0,0.00421991]
[1729538235060,0.002,67563.0,67562.0,0.00421991]
[1729538235356,0.07603,67563.0,67562.0,0.00421991]
[1729538235555,0.07603,67563.0,67562.0,0.00321991]
[1729538235756,0.002,67563.0,67562.0,0.00321991]
[1729538235964,0.002,67563.0,67562.0,0.07725191]
[1729538236152,0.0001465,67564.0,67563.0,0.07403]
[1729538236851,0.0001465,67564.0,67563.0,0.51807]
[1729538237047,0.0377,67588.0,67563.0,0.51807]
[1729538237247,0.074016,67577.0,67567.0,0.3608]
[1729538237456,0.074016,67577.0,67571.0,0.074021]
[1729538237761,0.074016,67576.0,67572.0,0.0756]
[1729538238555,0.074016,67576.0,67575.0,0.3608]
[1729538238756,0.001,67577.0,67573.0,0.3608]
[1729538238955,0.074006,67586.0,67574.0,0.1871113]
[1729538239156,0.0377,67588.0,67580.0,0.07280383]
[1729538239363,0.07401,67582.0,67579.0,0.14681683]
[1729538239565,0.07401,67582.0,67581.0,0.07280383]
[1729538239960,0.43481,67582.0,67580.0,0.07280383]
[1729538240465,0.07401,67582.0,67581.0,0.0994885]
[1729538241063,0.07401,67582.0,67581.0,0.07285254]
[1729538241467,0.07401,67582.0,67581.0,0.09971482]
[1729538242166,0.07401,67582.0,67581.0,0.17257332]
[1729538242968,0.07401,67582.0,67577.0,0.08754301]
[1729538243157,0.074016,67576.0,67570.0,0.08754301]
[1729538243464,0.074025,67568.0,67567.0,0.08754301]
[1729538243668,0.074026,67567.0,67566.0,0.08754301]
[1729538243963,0.074026,67567.0,67564.0,0.08750633]
[1729538244164,0.074029,67564.0,67563.0,0.08750633]
[1729538244369,0.07403,67563.0,67562.0,0.08972624]
[1729538244669,0.07403,67563.0,67562.0,0.00221991]
[1729538244869,0.07403,67563.0,67562.0,0.08972624]
[1729538245072,0.07403,67563.0,67562.0,0.00221991]
[1729538246774,0.07603,67563.0,67562.0,0.00821991]
[1729538247471,0.3628,67563.0,67562.0,0.00821991]
[1729538247773,0.3628,67563.0,67562.0,0.08225191]
[1729538247958,0.002,67563.0,67562.0,0.08225191]
[1729538251877,0.002,67563.0,67562.0,0.12594557]
[1729538252758,0.002,67563.0,67562.0,0.08225191]
[1729538254265,0.002,67563.0,67562.0,0.44305191]
[1729538254855,0.3978,67583.0,67562.0,0.36901991]
[1729538255060,0.074012,67580.0,67576.0,0.074015]
[1729538255259,0.074013,67579.0,67576.0,0.074015]
[1729538255461,0.436929,67583.0,67572.0,0.3608]
[1729538255765,0.074003,67588.0,67584.0,0.074007]
[1729538255964,0.40012015,67591.0,67579.0,0.3608]
[1729538255965,0.074006,67586.0,67582.0,0.074009]
[1729538256266,0.074002,67589.0,67585.0,0.074006]
[1729538256474,0.074004,67588.0,67585.0,0.074006]
[1729538256676,0.074001,67590.0,67584.0,0.074007]
[1729538257065,0.04132015,67591.0,67587.0,0.074004]
[1729538257066,0.004,67588.0,67587.0,0.074004]
[1729538257473,0.36302015,67591.0,67583.0,0.04369925]
[1729538257675,0.36302015,67591.0,67590.0,0.074001]
[1729538257676,0.00222015,67591.0,67590.0,0.074001]
[1729538258072,0.00222015,67591.0,67585.0,0.04369925]
[1729538258265,0.004,67589.0,67588.0,0.074003]
[1729538259173,0.01122015,67591.0,67588.0,0.074002]
[1729538259674,0.074001,67590.0,67588.0,0.074002]
[1729538259869,0.015,67589.0,67588.0,0.074002]
[1729538260476,0.074006,67585.0,67582.0,0.01350299]
[1729538260678,0.3608,67586.0,67576.0,0.150815]
[1729538260888,0.3608,67580.0,67576.0,0.16473307]
[1729538261178,0.434812,67580.0,67576.0,0.16473307]
[1729538261771,0.434812,67580.0,67577.0,0.074015]
[1729538262977,0.074012,67580.0,67577.0,0.074015]
[1729538263168,0.074012,67580.0,67577.0,0.078015]
[1729538264369,0.074012,67580.0,67577.0,0.082015]
[1729538265177,0.3608,67589.0,67578.0,0.04369925]
[1729538265178,0.074013,67579.0,67578.0,0.04369925]
[1729538265378,0.074004,67587.0,67577.0,0.05169925]
[1729538265573,0.074014,67578.0,67577.0,0.008]
[1729538266375,0.074014,67578.0,67577.0,0.004]
[1729538266578,0.3608,67582.0,67576.0,0.01391807]
[1729538266781,0.3608,67582.0,67571.0,0.074021]
[1729538266984,0.3608,67574.0,67571.0,0.074021]
[1729538267680,0.3608,67574.0,67571.0,0.08764652]
[1729538268075,0.074021,67572.0,67571.0,0.01362552]
[1729538268274,0.074021,67572.0,67569.0,0.074024]
[1729538268979,0.074021,67572.0,67571.0,0.004]
[1729538269280,0.074021,67572.0,67571.0,0.008]
[1729538269682,0.074021,67572.0,67571.0,0.004]
[1729538269878,0.074023,67570.0,67569.0,0.02186132]
[1729538270084,0.074023,67570.0,67569.0,0.008]
[1729538270274,0.074023,67570.0,67569.0,0.004]
[1729538271679,0.074023,67570.0,67557.0,0.0366]
[1729538271885,0.43483,67563.0,67557.0,0.0366]
[1729538272082,0.43483,67563.0,67556.0,3.82738]
[1729538272083,0.43483,67563.0,67556.0,3.79008]
[1729538272280,0.074037,67557.0,67556.0,3.79008]
[1729538272476,0.434837,67557.0,67556.0,3.79008]
[1729538273577,0.878917,67557.0,67556.0,3.46008]
[1729538273786,0.435837,67557.0,67556.0,3.46408]
[1729538273986,0.436837,67557.0,67556.0,3.46808]
[1729538275178,0.435837,67557.0,67556.0,3.46408]
[1729538275382,0.434837,67557.0,67556.0,3.46408]
[1729538276290,0.434837,67557.0,67556.0,3.50775374]
[1729538277083,0.878917,67557.0,67556.0,3.50775374]
[1729538277278,0.434837,67557.0,67556.0,3.46408]
[1729538277891,0.434837,67557.0,67556.0,3.50775374]
[1729538278092,0.434837,67557.0,67556.0,3.46408]
[1729538278782,0.434837,67557.0,67556.0,3.50775374]
[1729538279186,0.434837,67557.0,67556.0,3.46408]
[1729538280290,0.434837,67557.0,67556.0,3.58179174]
[1729538280488,0.434837,67557.0,67556.0,3.538118]
[1729538280692,0.074037,67557.0,67556.0,3.538118]
[1729538281186,0.3608,67561.0,67556.0,3.538118]
[1729538281391,0.434834,67561.0,67560.0,0.11764627]
[1729538281993,0.3608,67561.0,67559.0,0.04361227]
[1729538282193,0.074036,67560.0,67559.0,0.11763463]
[1729538282396,0.3608,67561.0,67560.0,0.074034]
[1729538282397,0.434833,67561.0,67560.0,0.074034]
[1729538282694,0.434833,67561.0,67560.0,0.11762844]
[1729538282993,0.3608,67561.0,67560.0,0.11762844]
[1729538283195,0.30894112,67561.0,67560.0,0.11760562]
[1729538283383,0.074032,67564.0,67563.0,0.074029]
[1729538285406,0.074026,67568.0,67567.0,0.074024]
[1729538285706,0.074023,67571.0,67569.0,0.074024]
[1729538286003,0.434823,67570.0,67569.0,0.074024]
[1729538286202,0.434823,67570.0,67563.0,0.074028]
[1729538286203,0.074032,67564.0,67563.0,0.074028]
[1729538286998,0.015,67568.0,67560.0,0.0386]
[1729538287196,0.074027,67567.0,67566.0,0.074026]
[1729538287907,0.07403,67564.0,67562.0,0.07403]
[1729538288120,0.07403,67563.0,67562.0,0.07403]
[1729538288502,0.001,67564.0,67560.0,0.0386]
[1729538288708,0.434833,67561.0,67560.0,0.0386]
[1729538290317,0.434833,67561.0,67560.0,0.0426]
[1729538291018,0.434833,67561.0,67560.0,0.04766512]
[1729538291314,0.434833,67561.0,67556.0,3.46008]
[1729538291315,0.878873,67561.0,67556.0,3.46008]
[1729538291518,0.434837,67557.0,67556.0,3.46008]
[1729538293123,0.434837,67557.0,67556.0,3.46408]
[1729538293318,0.3608,67557.0,67556.0,3.58178312]
[1729538293523,0.07403,67565.0,67564.0,0.074027]
[1729538295223,0.07803,67565.0,67564.0,0.13229541]
[1729538295917,0.08303,67565.0,67564.0,0.13229541]
[1729538296318,0.009,67565.0,67564.0,0.074027]
[1729538296720,0.009,67565.0,67564.0,0.14688241]
[1729538297122,0.083028,67565.0,67564.0,0.074027]
[1729538299125,0.083028,67565.0,67564.0,0.1323951]
[1729538300620,0.083028,67565.0,67564.0,0.074027]
[1729538305225,0.083028,67565.0,67564.0,0.13244843]
[1729538306231,0.083028,67565.0,67564.0,0.074027]
[1729538308627,0.009,67565.0,67564.0,0.074027]
[1729538310133,0.3608,67581.0,67564.0,0.518067]
[1729538310432,0.07401,67582.0,67574.0,0.074018]
[1729538310634,0.074004,67587.0,67578.0,0.074014]
[1729538310635,0.074011,67581.0,67578.0,0.074014]
[1729538311131,0.36302015,67591.0,67579.0,0.039]
[1729538311321,0.00222015,67591.0,67579.0,0.039]
[1729538311522,0.00222015,67591.0,67586.0,0.074005]
[1729538311727,0.004,67581.0,67580.0,0.074012]
[1729538312125,0.014,67582.0,67579.0,0.039]
[1729538312324,0.014,67582.0,67581.0,0.074011]
[1729538312734,0.074001,67590.0,67579.0,0.039]
[1729538312935,0.074001,67590.0,67588.0,0.074002]
[1729538313138,0.074002,67589.0,67588.0,0.074002]
[1729538314131,0.074002,67589.0,67588.0,0.1178268]
[1729538314427,0.074002,67589.0,67588.0,0.11769653]
[1729538314629,0.01622015,67591.0,67588.0,0.04369484]
[1729538314830,0.01622015,67591.0,67589.0,0.074001]
[1729538314831,0.07622015,67591.0,67589.0,0.074001]
[1729538315235,0.088001,67590.0,67589.0,0.074001]
[1729538316127,0.088001,67590.0,67589.0,0.075001]
[1729538316328,0.074001,67590.0,67589.0,0.002]
[1729538316632,0.074001,67590.0,67589.0,0.001]
[1729538316838,0.088001,67590.0,67589.0,0.002]
[1729538317333,0.074015,67577.0,67576.0,0.04369484]
[1729538317634,0.3608,67582.0,67574.0,0.04369484]
[1729538317831,0.074017,67575.0,67574.0,0.04371094]
[1729538318135,0.074012,67580.0,67572.0,0.04371094]
[1729538318329,0.3608,67582.0,67573.0,0.04371094]
[1729538318530,0.3608,67582.0,67580.0,0.074012]
[1729538318531,0.07401,67582.0,67580.0,0.074012]
[1729538318725,0.0534,67590.0,67583.0,0.074008]
[1729538318926,0.074007,67584.0,67583.0,0.074008]
[1729538319126,0.074007,67584.0,67574.0,0.07385541]
[1729538319127,0.074002,67589.0,67588.0,0.074002]
[1729538319328,0.074006,67586.0,67585.0,0.074006]
[1729538320128,0.074007,67585.0,67583.0,0.001]
[1729538320329,0.074007,67585.0,67583.0,0.075008]
[1729538321330,0.014,67584.0,67583.0,0.076008]
[1729538321735,0.088007,67584.0,67583.0,0.076008]
[1729538321932,0.11245827,67584.0,67583.0,0.075008]
[1729538322132,0.074007,67584.0,67583.0,0.075008]
[1729538322438,0.014,67585.0,67584.0,0.074007]
[1729538322736,0.014,67585.0,67581.0,0.37471635]
[1729538322737,0.014,67584.0,67583.0,0.075009]
[1729538322933,0.027,67584.0,67583.0,0.076009]
[1729538323338,0.06548059,67584.0,67583.0,0.076009]
[1729538323542,0.027,67584.0,67583.0,0.076009]
[1729538323843,0.014,67584.0,67583.0,0.075009]
[1729538325137,0.014,67585.0,67583.0,0.074009]
[1729538325332,0.074007,67584.0,67583.0,0.074009]
[1729538325532,0.087007,67584.0,67583.0,0.075009]
[1729538325927,0.101007,67584.0,67583.0,0.076009]
[1729538326736,0.014,67584.0,67583.0,0.075009]
[1729538326936,0.014,67584.0,67583.0,0.076009]
[1729538328544,0.027,67584.0,67583.0,0.076009]
[1729538329232,0.027,67584.0,67583.0,0.11969772]
[1729538329431,0.027,67584.0,67583.0,0.076009]
[1729538335139,0.027,67584.0,67583.0,0.119725]
[1729538335548,0.027,67584.0,67583.0,0.076009]
[1729538335938,0.027,67584.0,67583.0,0.11973972]
[1729538336137,0.0565763,67585.0,67583.0,0.1003045]
[1729538336342,0.0565763,67585.0,67584.0,0.1723115]
[1729538337243,0.0565763,67585.0,67584.0,0.2598148]
[1729538337434,0.0565763,67585.0,67584.0,0.0983045]
[1729538337639,0.0655763,67585.0,67584.0,0.21523087]